[Event "*** Titled Tuesday Blitz"]
[Site "Chess.com"]
[Date "2019.04.02"]
[Round "1"]
[White "Medvegy"]
[Black "mjray79"]
[Result "1-0"]
[WhiteElo "2539"]
[BlackElo "2166"]
[TimeControl "180+2"]
[EndTime "14:08:03 PDT"]
[Termination "Medvegy won on time"]

1. Nf3 {[%clk 0:02:59.7]} 1... Nf6 {[%clk 0:02:59.9]} 2. c4 {[%clk 0:02:59.4]}
2... g6 {[%clk 0:03:00.5]} 3. Nc3 {[%clk 0:02:58.9]} 3... Bg7 {[%clk 0:03:01.3]}
4. e4 {[%clk 0:02:58.6]} 4... d6 {[%clk 0:03:02.7]} 5. d4 {[%clk 0:02:59.8]}
5... O-O {[%clk 0:03:02.7]} 6. Be2 {[%clk 0:03:01.2]} 6... c5 {[%clk 0:03:03.3]}
7. d5 {[%clk 0:03:00]} 7... Bg4 {[%clk 0:03:04.4]} 8. Ng5 {[%clk 0:02:58.9]}
8... Bxe2 {[%clk 0:02:59.3]} 9. Qxe2 {[%clk 0:03:00.8]} 9... Nbd7 {[%clk
0:03:00.3]} 10. O-O {[%clk 0:03:00.6]} 10... h6 {[%clk 0:02:47.5]} 11. Nf3
{[%clk 0:03:01]} 11... Ne5 {[%clk 0:02:42.7]} 12. Ne1 {[%clk 0:02:51.9]} 12...
Ne8 {[%clk 0:02:10.2]} 13. f4 {[%clk 0:02:50.6]} 13... Nd7 {[%clk 0:02:11.5]}
14. Nf3 {[%clk 0:02:50.4]} 14... a6 {[%clk 0:02:08.4]} 15. a4 {[%clk 0:02:31.6]}
15... Nc7 {[%clk 0:02:04.9]} 16. Bd2 {[%clk 0:02:17.3]} 16... e5 {[%clk
0:01:38.6]} 17. f5 {[%clk 0:02:13.2]} 17... g5 {[%clk 0:01:18.9]} 18. a5 {[%clk
0:02:02.2]} 18... b5 {[%clk 0:01:04.8]} 19. axb6 {[%clk 0:01:55.4]} 19... Nxb6
{[%clk 0:01:04.7]} 20. Ra5 {[%clk 0:01:43.8]} 20... Rb8 {[%clk 0:00:19.2]} 21.
b3 {[%clk 0:01:37.7]} 21... Nd7 {[%clk 0:00:19.2]} 22. Ra3 {[%clk 0:01:33.5]}
22... Rb6 {[%clk 0:00:14.7]} 23. Nd1 {[%clk 0:01:22]} 23... Qb8 {[%clk
0:00:13.8]} 24. Qd3 {[%clk 0:01:22.1]} 24... Nf6 {[%clk 0:00:09.8]} 25. Nf2
{[%clk 0:01:14.3]} 25... g4 {[%clk 0:00:07.5]} 26. Ne1 {[%clk 0:01:05.4]} 26...
h5 {[%clk 0:00:07.5]} 27. Nc2 {[%clk 0:01:05.7]} 27... Qa7 {[%clk 0:00:05]} 28.
h3 {[%clk 0:01:02.7]} 28... gxh3 {[%clk 0:00:03.9]} 29. gxh3 {[%clk 0:01:04.5]}
29... Rfb8 {[%clk 0:00:04.5]} 30. Kh2 {[%clk 0:01:03.8]} 30... Qb7 {[%clk
0:00:05.3]} 31. Na1 {[%clk 0:00:57.5]} 31... Qc8 {[%clk 0:00:05.8]} 32. Rg1
{[%clk 0:00:57.2]} 32... Kh7 {[%clk 0:00:06.1]} 33. Qf3 {[%clk 0:00:49.4]} 33...
Bh6 {[%clk 0:00:02.5]} 34. Bxh6 {[%clk 0:00:36.4]} 34... Kxh6 {[%clk 0:00:03.1]}
35. Qe3+ {[%clk 0:00:38.3]} 35... Kh7 {[%clk 0:00:02.9]} 36. Qg5 {[%clk
0:00:40.2]} 1-0

[Event "*** Titled Tuesday Blitz"]
[Site "Chess.com"]
[Date "2019.04.02"]
[Round "1"]
[White "Ar4uha"]
[Black "DACF2905"]
[Result "1/2-1/2"]
[WhiteElo "2513"]
[BlackElo "2076"]
[TimeControl "180+2"]
[EndTime "14:08:16 PDT"]
[Termination "Game drawn by repetition"]

1. e4 {[%clk 0:03:00.2]} 1... c5 {[%clk 0:02:58]} 2. Nf3 {[%clk 0:02:59.1]} 2...
e6 {[%clk 0:02:51.3]} 3. d4 {[%clk 0:02:54.9]} 3... cxd4 {[%clk 0:02:50.6]} 4.
Nxd4 {[%clk 0:02:56.8]} 4... a6 {[%clk 0:02:51.9]} 5. c4 {[%clk 0:02:57.1]} 5...
Qc7 {[%clk 0:02:51.3]} 6. a3 {[%clk 0:02:56.7]} 6... Nc6 {[%clk 0:02:52.2]} 7.
Be3 {[%clk 0:02:47.8]} 7... Nf6 {[%clk 0:02:52.2]} 8. Nc3 {[%clk 0:02:48.3]}
8... Be7 {[%clk 0:02:48.9]} 9. Rc1 {[%clk 0:02:45.7]} 9... O-O {[%clk
0:02:48.7]} 10. Be2 {[%clk 0:02:14.3]} 10... d6 {[%clk 0:02:39.2]} 11. O-O
{[%clk 0:02:13]} 11... Bd7 {[%clk 0:02:39.8]} 12. f3 {[%clk 0:02:12.8]} 12...
Rac8 {[%clk 0:02:37.1]} 13. Nd5 {[%clk 0:02:06.4]} 13... exd5 {[%clk 0:02:27.1]}
14. cxd5 {[%clk 0:02:08.3]} 14... Qa5 {[%clk 0:02:19.1]} 15. dxc6 {[%clk
0:02:07]} 15... bxc6 {[%clk 0:02:20]} 16. Qd2 {[%clk 0:02:01.4]} 16... Qxd2
{[%clk 0:02:19.5]} 17. Bxd2 {[%clk 0:02:03.3]} 17... c5 {[%clk 0:02:16.3]} 18.
Nc2 {[%clk 0:01:54]} 18... Bb5 {[%clk 0:02:16.8]} 19. Rfe1 {[%clk 0:01:52.4]}
19... Nd7 {[%clk 0:02:15.2]} 20. Ne3 {[%clk 0:01:51]} 20... Ne5 {[%clk
0:02:13.1]} 21. Bc3 {[%clk 0:01:50.2]} 21... Bg5 {[%clk 0:02:09.7]} 22. Kf2
{[%clk 0:01:49.5]} 22... Bxe2 {[%clk 0:02:04.4]} 23. Kxe2 {[%clk 0:01:49]} 23...
Bxe3 {[%clk 0:01:57.6]} 24. Kxe3 {[%clk 0:01:49.3]} 24... Rfe8 {[%clk
0:01:59.5]} 25. Red1 {[%clk 0:01:49.4]} 25... Nc4+ {[%clk 0:01:39.9]} 26. Kd3
{[%clk 0:01:50]} 26... Nb6 {[%clk 0:01:34.6]} 27. Kc2 {[%clk 0:01:50.7]} 27...
Rc6 {[%clk 0:01:24.2]} 28. Rd2 {[%clk 0:01:50.1]} 28... Nc4 {[%clk 0:01:22.6]}
29. Rd3 {[%clk 0:01:48.8]} 29... f6 {[%clk 0:01:18.5]} 30. Rcd1 {[%clk
0:01:46.9]} 30... Kf7 {[%clk 0:01:18.1]} 31. Kb3 {[%clk 0:01:46.1]} 31... Na5+
{[%clk 0:00:57.6]} 32. Bxa5 {[%clk 0:01:45.4]} 32... c4+ {[%clk 0:00:58.9]} 33.
Ka4 {[%clk 0:01:43]} 33... cxd3 {[%clk 0:00:59.7]} 34. Rxd3 {[%clk 0:01:44.9]}
34... Rec8 {[%clk 0:01:00.3]} 35. Bc3 {[%clk 0:01:44.9]} 35... Ke6 {[%clk
0:01:01.3]} 36. Ka5 {[%clk 0:01:32.1]} 36... Rc5+ {[%clk 0:00:58.3]} 37. Kxa6
{[%clk 0:01:30.6]} 37... R8c7 {[%clk 0:00:58.9]} 38. a4 {[%clk 0:01:25.8]} 38...
R7c6+ {[%clk 0:00:59.4]} 39. Kb7 {[%clk 0:01:25.4]} 39... Rc7+ {[%clk
0:01:00.6]} 40. Kb6 {[%clk 0:01:26.5]} 40... R7c6+ {[%clk 0:01:01.6]} 41. Kb7
{[%clk 0:01:27.3]} 41... Rc7+ {[%clk 0:01:02.9]} 42. Kb6 {[%clk 0:01:28.6]}
42... R7c6+ {[%clk 0:00:56.7]} 43. Kb7 {[%clk 0:01:29]} 43... Rc7+ {[%clk
0:00:57.8]} 1/2-1/2

[Event "*** Titled Tuesday Blitz"]
[Site "Chess.com"]
[Date "2019.04.02"]
[Round "1"]
[White "UCantHandleDenker"]
[Black "iturrizaga"]
[Result "0-1"]
[WhiteElo "2463"]
[BlackElo "2858"]
[TimeControl "180+2"]
[EndTime "14:08:19 PDT"]
[Termination "iturrizaga won by checkmate"]

1. Nf3 {[%clk 0:03:00.5]} 1... c5 {[%clk 0:03:00.5]} 2. g3 {[%clk 0:03:01]} 2...
g6 {[%clk 0:03:01.5]} 3. Bg2 {[%clk 0:03:02.4]} 3... Bg7 {[%clk 0:03:03.1]} 4.
O-O {[%clk 0:03:03.9]} 4... Nc6 {[%clk 0:03:04.1]} 5. d3 {[%clk 0:03:03.9]} 5...
e5 {[%clk 0:03:02.6]} 6. e4 {[%clk 0:03:04.1]} 6... Nge7 {[%clk 0:03:04.2]} 7.
c3 {[%clk 0:03:04.2]} 7... O-O {[%clk 0:03:04.2]} 8. a3 {[%clk 0:03:04.5]} 8...
a5 {[%clk 0:03:04.1]} 9. a4 {[%clk 0:03:04.8]} 9... d5 {[%clk 0:03:03.3]} 10.
Na3 {[%clk 0:03:02.7]} 10... h6 {[%clk 0:02:58.9]} 11. Re1 {[%clk 0:02:49.6]}
11... Re8 {[%clk 0:02:48.2]} 12. Nb5 {[%clk 0:02:32.3]} 12... Be6 {[%clk
0:02:40.7]} 13. Qc2 {[%clk 0:02:21]} 13... Rc8 {[%clk 0:02:33.9]} 14. h4 {[%clk
0:02:08.5]} 14... Qd7 {[%clk 0:02:31.4]} 15. Qe2 {[%clk 0:02:00.8]} 15... Red8
{[%clk 0:02:22.8]} 16. Kh2 {[%clk 0:01:48.2]} 16... Bg4 {[%clk 0:02:18.2]} 17.
Qf1 {[%clk 0:01:47.2]} 17... d4 {[%clk 0:02:05.5]} 18. cxd4 {[%clk 0:01:32.4]}
18... cxd4 {[%clk 0:01:45.6]} 19. Bd2 {[%clk 0:01:30.4]} 19... Be6 {[%clk
0:01:39.4]} 20. Bh3 {[%clk 0:01:26.3]} 20... f5 {[%clk 0:01:30]} 21. h5 {[%clk
0:01:04]} 21... g5 {[%clk 0:01:28.2]} 22. exf5 {[%clk 0:01:01.5]} 22... Bxf5
{[%clk 0:01:19.2]} 23. Bxf5 {[%clk 0:01:00.5]} 23... Qxf5 {[%clk 0:01:21.1]} 24.
Kg2 {[%clk 0:00:58.8]} 24... Rf8 {[%clk 0:01:15.5]} 25. Qe2 {[%clk 0:00:57.3]}
25... Rf6 {[%clk 0:01:15]} 26. Nh2 {[%clk 0:00:53.8]} 26... Rcf8 {[%clk
0:01:15.4]} 27. Rf1 {[%clk 0:00:54.1]} 27... Nd5 {[%clk 0:01:09.6]} 28. Ng4
{[%clk 0:00:50.2]} 28... Re6 {[%clk 0:01:08.9]} 29. Rad1 {[%clk 0:00:33.8]}
29... e4 {[%clk 0:01:07.4]} 30. Nh2 {[%clk 0:00:06.1]} 30... exd3 {[%clk
0:00:47.4]} 31. Qg4 {[%clk 0:00:07]} 31... Re2 {[%clk 0:00:47.4]} 32. Qxf5
{[%clk 0:00:06.2]} 32... Rxf5 {[%clk 0:00:49.3]} 33. Ng4 {[%clk 0:00:07.7]}
33... Bf8 {[%clk 0:00:45.9]} 34. Kh3 {[%clk 0:00:08.3]} 34... Kg7 {[%clk
0:00:36.5]} 35. Bc1 {[%clk 0:00:08.9]} 35... Ndb4 {[%clk 0:00:34.4]} 36. Nc7
{[%clk 0:00:09]} 36... Bd6 {[%clk 0:00:32.2]} 37. Nb5 {[%clk 0:00:09.6]} 37...
Bf8 {[%clk 0:00:29.8]} 38. f4 {[%clk 0:00:10.9]} 38... gxf4 {[%clk 0:00:30.4]}
39. Bxf4 {[%clk 0:00:12.8]} 39... Rxh5# {[%clk 0:00:31.5]} 0-1

[Event "*** Titled Tuesday Blitz"]
[Site "Chess.com"]
[Date "2019.04.02"]
[Round "1"]
[White "bubacik"]
[Black "medalja"]
[Result "1-0"]
[WhiteElo "2609"]
[BlackElo "2285"]
[TimeControl "180+2"]
[EndTime "14:08:22 PDT"]
[Termination "bubacik won by resignation"]

1. d4 {[%clk 0:03:01.9]} 1... Nf6 {[%clk 0:03:00.1]} 2. Nf3 {[%clk 0:03:02.3]}
2... d5 {[%clk 0:02:59.5]} 3. c4 {[%clk 0:03:03.7]} 3... e6 {[%clk 0:03:00.5]}
4. Nc3 {[%clk 0:03:00]} 4... Be7 {[%clk 0:03:01.5]} 5. Bf4 {[%clk 0:02:59.8]}
5... O-O {[%clk 0:03:02.4]} 6. e3 {[%clk 0:02:58.5]} 6... c5 {[%clk 0:03:00.2]}
7. Qc2 {[%clk 0:02:37.3]} 7... cxd4 {[%clk 0:02:55.7]} 8. Nxd4 {[%clk 0:02:32]}
8... Nc6 {[%clk 0:02:48.3]} 9. O-O-O {[%clk 0:02:28.4]} 9... Qa5 {[%clk
0:02:30.7]} 10. Nb3 {[%clk 0:02:12.3]} 10... Qb6 {[%clk 0:01:59.8]} 11. c5
{[%clk 0:02:10.9]} 11... Qd8 {[%clk 0:01:55.7]} 12. e4 {[%clk 0:02:05.2]} 12...
e5 {[%clk 0:01:53.5]} 13. Nxd5 {[%clk 0:01:47.3]} 13... Nxd5 {[%clk 0:01:15.4]}
14. exd5 {[%clk 0:01:34.7]} 14... exf4 {[%clk 0:01:15.8]} 15. dxc6 {[%clk
0:01:32]} 15... Qc7 {[%clk 0:01:16.7]} 16. Bd3 {[%clk 0:01:27.5]} 16... h6
{[%clk 0:01:04.1]} 17. Rhe1 {[%clk 0:00:52.2]} 17... a5 {[%clk 0:00:48.1]} 18.
Qc4 {[%clk 0:00:53]} 18... a4 {[%clk 0:00:42.2]} 19. Qe4 {[%clk 0:00:51.7]}
19... g6 {[%clk 0:00:15.2]} 20. Qxe7 {[%clk 0:00:46.9]} 20... Qxe7 {[%clk
0:00:16.4]} 21. Rxe7 {[%clk 0:00:43.7]} 21... axb3 {[%clk 0:00:18.3]} 22. axb3
{[%clk 0:00:38.6]} 22... bxc6 {[%clk 0:00:18.9]} 23. Kc2 {[%clk 0:00:28.2]}
23... Be6 {[%clk 0:00:19.7]} 24. Bc4 {[%clk 0:00:21.9]} 24... Bxc4 {[%clk
0:00:17.7]} 25. bxc4 {[%clk 0:00:23.8]} 25... Ra5 {[%clk 0:00:18.7]} 26. b4
{[%clk 0:00:23.4]} 26... Ra2+ {[%clk 0:00:19.6]} 27. Kb3 {[%clk 0:00:24.6]}
27... Rxf2 {[%clk 0:00:20.7]} 28. b5 {[%clk 0:00:26.2]} 28... cxb5 {[%clk
0:00:21.8]} 29. cxb5 {[%clk 0:00:27]} 29... Rxg2 {[%clk 0:00:23.3]} 30. c6
{[%clk 0:00:28.2]} 30... f3 {[%clk 0:00:24.1]} 31. c7 {[%clk 0:00:26.8]} 31...
f2 {[%clk 0:00:25]} 32. Rf1 {[%clk 0:00:27.5]} 32... Rg5 {[%clk 0:00:24.6]} 33.
Kc4 {[%clk 0:00:27.1]} 33... Rg4+ {[%clk 0:00:25.4]} 34. Kc5 {[%clk 0:00:28.1]}
34... Rf4 {[%clk 0:00:26.4]} 35. b6 {[%clk 0:00:29.1]} 35... Rf5+ {[%clk
0:00:27.3]} 36. Kc6 {[%clk 0:00:30.3]} 36... g5 {[%clk 0:00:27.6]} 37. b7 {[%clk
0:00:30.9]} 37... Rf6+ {[%clk 0:00:26.9]} 38. Kd7 {[%clk 0:00:31.4]} 38... g4
{[%clk 0:00:22.8]} 39. c8=Q {[%clk 0:00:26.4]} 39... Rxc8 {[%clk 0:00:22.7]} 40.
bxc8=Q+ {[%clk 0:00:27.2]} 40... Kg7 {[%clk 0:00:18.6]} 41. Re8 {[%clk
0:00:27.6]} 1-0

[Event "*** Titled Tuesday Blitz"]
[Site "Chess.com"]
[Date "2019.04.02"]
[Round "1"]
[White "northridgehawk"]
[Black "Arystanner"]
[Result "0-1"]
[WhiteElo "2218"]
[BlackElo "2552"]
[TimeControl "180+2"]
[EndTime "14:08:22 PDT"]
[Termination "Arystanner won by resignation"]

1. e4 {[%clk 0:03:01.9]} 1... e5 {[%clk 0:03:00.8]} 2. Nf3 {[%clk 0:03:01.8]}
2... Nc6 {[%clk 0:03:02]} 3. Bb5 {[%clk 0:03:03]} 3... a6 {[%clk 0:03:03]} 4.
Ba4 {[%clk 0:03:04.2]} 4... Nf6 {[%clk 0:03:04.2]} 5. d3 {[%clk 0:03:05.5]} 5...
Bc5 {[%clk 0:03:00.6]} 6. c3 {[%clk 0:03:05.7]} 6... d6 {[%clk 0:02:56.8]} 7.
O-O {[%clk 0:03:06.9]} 7... b5 {[%clk 0:02:56.1]} 8. Bc2 {[%clk 0:03:07.4]} 8...
O-O {[%clk 0:02:56.4]} 9. h3 {[%clk 0:03:08.6]} 9... Bb6 {[%clk 0:02:52.2]} 10.
Re1 {[%clk 0:03:10.2]} 10... Ne7 {[%clk 0:02:53.2]} 11. Nbd2 {[%clk 0:03:10.1]}
11... Ng6 {[%clk 0:02:50.6]} 12. Nf1 {[%clk 0:03:11.4]} 12... c6 {[%clk
0:02:49.2]} 13. Ng3 {[%clk 0:03:12.7]} 13... Re8 {[%clk 0:02:50.2]} 14. b4
{[%clk 0:03:10.6]} 14... d5 {[%clk 0:02:50.7]} 15. Qe2 {[%clk 0:03:05.6]} 15...
Bd7 {[%clk 0:02:42.6]} 16. a4 {[%clk 0:03:04.3]} 16... h6 {[%clk 0:02:28.8]} 17.
Be3 {[%clk 0:03:00.2]} 17... Qc7 {[%clk 0:02:21.6]} 18. Bb3 {[%clk 0:02:51.7]}
18... Bxe3 {[%clk 0:02:17.5]} 19. Qxe3 {[%clk 0:02:49]} 19... Be6 {[%clk
0:02:13]} 20. exd5 {[%clk 0:02:42.1]} 20... Bxd5 {[%clk 0:02:09.3]} 21. c4
{[%clk 0:02:39]} 21... bxc4 {[%clk 0:02:05.2]} 22. dxc4 {[%clk 0:02:40.9]} 22...
Bxf3 {[%clk 0:02:06.5]} 23. Qxf3 {[%clk 0:02:41.6]} 23... c5 {[%clk 0:01:56.6]}
24. b5 {[%clk 0:02:34.6]} 24... a5 {[%clk 0:01:56.6]} 25. Bc2 {[%clk 0:02:35]}
25... Rad8 {[%clk 0:01:51.4]} 26. Nf5 {[%clk 0:02:35.1]} 26... Re6 {[%clk
0:01:39.1]} 27. Rad1 {[%clk 0:02:31.8]} 27... Rxd1 {[%clk 0:01:40.2]} 28. Rxd1
{[%clk 0:02:33]} 28... e4 {[%clk 0:01:41.3]} 29. Qe3 {[%clk 0:02:28.5]} 29...
Ne5 {[%clk 0:01:34.7]} 30. Qg3 {[%clk 0:02:14.3]} 30... Nh5 {[%clk 0:01:24.3]}
31. Qh4 {[%clk 0:02:05.8]} 31... Nf6 {[%clk 0:01:08.7]} 32. Bxe4 {[%clk
0:01:59.3]} 32... Ng6 {[%clk 0:01:05.8]} 33. Nxh6+ {[%clk 0:00:44.3]} 33... gxh6
{[%clk 0:01:03.3]} 34. Bxg6 {[%clk 0:00:45.6]} 34... fxg6 {[%clk 0:00:59.6]} 35.
Qxh6 {[%clk 0:00:46.8]} 35... Ne4 {[%clk 0:00:46.7]} 36. Rd5 {[%clk 0:00:44.4]}
36... Qf7 {[%clk 0:00:40.7]} 37. Qe3 {[%clk 0:00:43.4]} 37... Nd6 {[%clk
0:00:36.1]} 38. Qxc5 {[%clk 0:00:43.3]} 38... Re1+ {[%clk 0:00:36.1]} 39. Kh2
{[%clk 0:00:44.7]} 39... Qf4+ {[%clk 0:00:37.4]} 40. g3 {[%clk 0:00:46.3]} 40...
Qf3 {[%clk 0:00:38.6]} 0-1

[Event "*** Titled Tuesday Blitz"]
[Site "Chess.com"]
[Date "2019.04.02"]
[Round "1"]
[White "Kostya_Nikologorskiy"]
[Black "Gareth-Bale11"]
[Result "1-0"]
[WhiteElo "2411"]
[BlackElo "2698"]
[TimeControl "180+2"]
[EndTime "14:08:23 PDT"]
[Termination "Kostya_Nikologorskiy won by resignation"]

1. d4 {[%clk 0:03:00.6]} 1... d5 {[%clk 0:02:59.6]} 2. c4 {[%clk 0:03:01.3]}
2... e6 {[%clk 0:02:59.8]} 3. Nc3 {[%clk 0:03:02.2]} 3... a6 {[%clk 0:03:00.3]}
4. cxd5 {[%clk 0:02:15.9]} 4... exd5 {[%clk 0:03:02.2]} 5. Nf3 {[%clk
0:02:16.8]} 5... Nf6 {[%clk 0:02:59.7]} 6. Bg5 {[%clk 0:02:15.6]} 6... Be6
{[%clk 0:03:00.3]} 7. e3 {[%clk 0:02:13.3]} 7... Nbd7 {[%clk 0:02:59.9]} 8. Bd3
{[%clk 0:02:14.4]} 8... Bd6 {[%clk 0:03:01]} 9. Qc2 {[%clk 0:02:14.1]} 9... c6
{[%clk 0:02:54.1]} 10. O-O {[%clk 0:02:13.6]} 10... Qc7 {[%clk 0:02:50.9]} 11.
Bf5 {[%clk 0:02:12.6]} 11... Bxf5 {[%clk 0:02:45.3]} 12. Qxf5 {[%clk 0:02:14]}
12... g6 {[%clk 0:02:40.7]} 13. Qd3 {[%clk 0:02:11]} 13... O-O {[%clk
0:02:33.9]} 14. h3 {[%clk 0:02:08.1]} 14... Rfe8 {[%clk 0:02:31.1]} 15. Nd2
{[%clk 0:02:06.8]} 15... Rac8 {[%clk 0:02:25.2]} 16. Rae1 {[%clk 0:02:06.7]}
16... Bf8 {[%clk 0:02:18.1]} 17. f4 {[%clk 0:01:59.2]} 17... c5 {[%clk
0:02:14.8]} 18. f5 {[%clk 0:01:59]} 18... Bg7 {[%clk 0:02:07.2]} 19. fxg6 {[%clk
0:01:58.7]} 19... hxg6 {[%clk 0:02:06.1]} 20. Rf3 {[%clk 0:01:50.6]} 20... cxd4
{[%clk 0:01:56.8]} 21. Qxd4 {[%clk 0:01:49.9]} 21... Ne4 {[%clk 0:01:16.7]} 22.
Qxd5 {[%clk 0:01:49.7]} 22... Nxg5 {[%clk 0:01:17.2]} 23. Qxg5 {[%clk
0:01:47.8]} 23... Ne5 {[%clk 0:01:18]} 24. Rg3 {[%clk 0:01:24.8]} 24... Nd3
{[%clk 0:01:15.5]} 25. Rf1 {[%clk 0:01:24.7]} 25... Rcd8 {[%clk 0:00:32.5]} 26.
Nde4 {[%clk 0:01:20.5]} 26... Qe5 {[%clk 0:00:28.2]} 27. Qh4 {[%clk 0:00:59.1]}
27... f5 {[%clk 0:00:14.2]} 28. Ng5 {[%clk 0:00:51.3]} 28... Rd6 {[%clk
0:00:15.2]} 29. Rgf3 {[%clk 0:00:43.2]} 29... Nxb2 {[%clk 0:00:15.3]} 30. Qh7+
{[%clk 0:00:42.1]} 30... Kf8 {[%clk 0:00:16.3]} 31. Rxf5+ {[%clk 0:00:43.3]}
31... gxf5 {[%clk 0:00:17.6]} 32. Rxf5+ {[%clk 0:00:45.2]} 32... Qxf5 {[%clk
0:00:18.5]} 33. Qxf5+ {[%clk 0:00:47.1]} 33... Rf6 {[%clk 0:00:19.6]} 34. Nh7+
{[%clk 0:00:48.1]} 34... Kf7 {[%clk 0:00:20.5]} 35. Nxf6 {[%clk 0:00:49.2]}
35... Bxf6 {[%clk 0:00:22.4]} 36. Nd5 {[%clk 0:00:50.5]} 36... Re6 {[%clk
0:00:23.5]} 37. Nxf6 {[%clk 0:00:47.4]} 37... Rxf6 {[%clk 0:00:25.4]} 38. Qd7+
{[%clk 0:00:49.1]} 38... Kg6 {[%clk 0:00:26.6]} 39. Qxb7 {[%clk 0:00:51]} 39...
Na4 {[%clk 0:00:18.8]} 40. Qe4+ {[%clk 0:00:50.3]} 1-0

[Event "*** Titled Tuesday Blitz"]
[Site "Chess.com"]
[Date "2019.04.02"]
[Round "1"]
[White "Touching3200"]
[Black "beatles_22"]
[Result "0-1"]
[WhiteElo "2314"]
[BlackElo "2633"]
[TimeControl "180+2"]
[EndTime "14:08:33 PDT"]
[Termination "beatles_22 won by resignation"]

1. e4 {[%clk 0:03:01.4]} 1... e5 {[%clk 0:03:00.7]} 2. Nf3 {[%clk 0:03:01.6]}
2... Nc6 {[%clk 0:03:02.2]} 3. Bc4 {[%clk 0:02:58.9]} 3... Nf6 {[%clk
0:03:02.5]} 4. d3 {[%clk 0:02:59.4]} 4... Be7 {[%clk 0:03:03.5]} 5. O-O {[%clk
0:02:58.4]} 5... O-O {[%clk 0:03:04.9]} 6. Re1 {[%clk 0:02:59.4]} 6... d6 {[%clk
0:03:06.1]} 7. a4 {[%clk 0:02:59.6]} 7... Kh8 {[%clk 0:03:06.9]} 8. a5 {[%clk
0:02:57.1]} 8... a6 {[%clk 0:03:08.2]} 9. h3 {[%clk 0:02:56.5]} 9... Ng8 {[%clk
0:03:09.2]} 10. Nc3 {[%clk 0:02:56.8]} 10... f5 {[%clk 0:03:10.2]} 11. Nd5
{[%clk 0:02:57.9]} 11... fxe4 {[%clk 0:03:08.9]} 12. dxe4 {[%clk 0:02:58.7]}
12... Nf6 {[%clk 0:03:05]} 13. c3 {[%clk 0:02:51.9]} 13... Bd7 {[%clk
0:02:43.5]} 14. b4 {[%clk 0:01:49.2]} 14... Rc8 {[%clk 0:02:24.3]} 15. Ra2
{[%clk 0:01:36.4]} 15... Qe8 {[%clk 0:02:22.6]} 16. Ng5 {[%clk 0:01:31]} 16...
Qg6 {[%clk 0:02:15]} 17. Nxe7 {[%clk 0:01:31]} 17... Nxe7 {[%clk 0:02:16.9]} 18.
Ne6 {[%clk 0:01:22.8]} 18... Bxe6 {[%clk 0:01:46.6]} 19. Bxe6 {[%clk 0:01:23.5]}
19... Rcd8 {[%clk 0:01:47.9]} 20. Bg4 {[%clk 0:00:41.9]} 20... Nxe4 {[%clk
0:01:43.6]} 21. Bh5 {[%clk 0:00:30.9]} 21... Nxc3 {[%clk 0:01:34.4]} 22. Bxg6
{[%clk 0:00:28]} 22... Nxd1 {[%clk 0:01:35.4]} 23. Bh5 {[%clk 0:00:26.8]} 23...
Nc3 {[%clk 0:01:35.9]} 24. Rc2 {[%clk 0:00:27.3]} 24... Nb5 {[%clk 0:01:33.4]}
25. Bf3 {[%clk 0:00:27.3]} 25... c6 {[%clk 0:01:32.4]} 26. Bg5 {[%clk
0:00:28.2]} 26... Rde8 {[%clk 0:01:29.4]} 27. Rd2 {[%clk 0:00:27.8]} 27... Nf5
{[%clk 0:01:24.3]} 28. Be2 {[%clk 0:00:22.9]} 28... Nfd4 {[%clk 0:01:21.6]} 29.
Bxb5 {[%clk 0:00:23.6]} 29... Nxb5 {[%clk 0:01:23]} 30. Be3 {[%clk 0:00:23.3]}
30... e4 {[%clk 0:01:20.4]} 31. Bb6 {[%clk 0:00:23.4]} 31... d5 {[%clk
0:01:21.2]} 32. Rde2 {[%clk 0:00:23.5]} 32... Re6 {[%clk 0:01:15]} 33. f3 {[%clk
0:00:24.1]} 33... Rfe8 {[%clk 0:01:16.5]} 34. fxe4 {[%clk 0:00:23.7]} 34... Rxe4
{[%clk 0:01:17.5]} 35. Rxe4 {[%clk 0:00:25]} 35... Rxe4 {[%clk 0:01:15.6]} 36.
Rxe4 {[%clk 0:00:26.1]} 36... dxe4 {[%clk 0:01:17.5]} 37. Kf2 {[%clk 0:00:27.1]}
37... Kg8 {[%clk 0:01:14.9]} 38. Ke3 {[%clk 0:00:27.5]} 38... Kf7 {[%clk
0:01:16.2]} 39. Kxe4 {[%clk 0:00:28.1]} 39... Ke6 {[%clk 0:01:17.7]} 40. Bc5
{[%clk 0:00:27.3]} 40... Nc3+ {[%clk 0:01:17.2]} 41. Kd4 {[%clk 0:00:25.5]}
41... Nd5 {[%clk 0:01:19.1]} 42. Bf8 {[%clk 0:00:25.5]} 42... g6 {[%clk
0:01:13.3]} 43. Kc5 {[%clk 0:00:26.5]} 43... Kd7 {[%clk 0:01:12.1]} 44. Bg7
{[%clk 0:00:23.9]} 44... Nf4 {[%clk 0:01:12.5]} 45. g3 {[%clk 0:00:19.8]} 45...
Nxh3 {[%clk 0:01:12.7]} 46. Kb6 {[%clk 0:00:21.4]} 46... Kc8 {[%clk 0:01:13.4]}
47. Be5 {[%clk 0:00:22.9]} 47... Ng5 {[%clk 0:01:14.3]} 48. Bf4 {[%clk
0:00:23.8]} 48... Ne4 {[%clk 0:01:14]} 49. Be5 {[%clk 0:00:24.6]} 49... h5
{[%clk 0:01:14.1]} 50. Ka7 {[%clk 0:00:25.4]} 50... g5 {[%clk 0:01:14.7]} 51.
Ka8 {[%clk 0:00:26.7]} 51... h4 {[%clk 0:01:14.7]} 52. gxh4 {[%clk 0:00:28.6]}
52... gxh4 {[%clk 0:01:16.6]} 53. Bh2 {[%clk 0:00:28.5]} 53... h3 {[%clk
0:01:17.9]} 54. Ka7 {[%clk 0:00:29]} 54... Nf2 {[%clk 0:01:18]} 55. Kb6 {[%clk
0:00:29.7]} 55... Ng4 {[%clk 0:01:19.2]} 56. Bg3 {[%clk 0:00:30.5]} 56... h2
{[%clk 0:01:20.6]} 57. Bxh2 {[%clk 0:00:31.7]} 57... Nxh2 {[%clk 0:01:22.5]} 0-1